fUST/lending_fUST_20240527
["ID","MTS","AMOUNT","RATE_DAILY","PERIOD"]
[327988514,1716754298308,-542.71089633,0.00033296,30]
[327988515,1716754298331,-1682.56,0.00033296,30]
[327988516,1716754298355,-641.04,0.00033296,30]
[327988517,1716754298379,-1682.56,0.00033296,30]
[327988518,1716754298402,-1682.56,0.00033296,30]
[327988519,1716754298427,-503.57674345,0.00033296,30]
[327988520,1716754298451,-641.04,0.00033296,30]
[327988521,1716754298476,-641.04,0.00033296,30]
[327988522,1716754298499,-1682.56,0.00033296,30]
[327988523,1716754298523,-1682.56,0.00033296,30]
[327988524,1716754298548,-1682.56,0.00033296,30]
[327988525,1716754298572,-641.04,0.00033296,30]
[327988526,1716754298596,-1682.57765065,0.00033296,30]
[327988527,1716754298619,-641.04,0.00033296,30]
[327988528,1716754298644,-641.04,0.00033296,30]
[327988529,1716754298668,-641.04,0.00033296,30]
[327988530,1716754298693,-641.04,0.00033296,30]
[327988531,1716754298717,-641.04,0.00033296,30]
[327988532,1716754298741,-641.04,0.00033296,30]
[327988533,1716754298766,-641.04,0.00033296,30]
[327988534,1716754298789,-509.02887378,0.00033296,30]
[327988535,1716754298813,-641.04,0.00033296,30]
[327988536,1716754298836,-641.04,0.00033296,30]
[327988537,1716754298859,-641.04,0.00033296,30]
[327988538,1716754298964,-641.04,0.00033296,30]
[327988539,1716754298988,-641.04,0.00033296,30]
[327988540,1716754299015,-641.04,0.00033296,30]
[327988541,1716754299044,-641.25608005,0.00033296,30]
[327988542,1716754299071,-898.53,0.00033296,30]
[327988543,1716754299097,-898.53,0.00033296,30]
[327988544,1716754299123,-898.53,0.00033296,30]
[327988545,1716754299149,-898.53,0.00033296,30]
[327988546,1716754299173,-500.0,0.00033296,30]
[327988547,1716754299199,-898.53,0.00033296,30]
[327988548,1716754299224,-898.53,0.00033296,30]
[327988549,1716754299249,-500.0,0.00033296,30]
[327988550,1716754299275,-898.53,0.00033296,30]
[327988551,1716754299300,-500.0,0.00033296,30]
[327988552,1716754299324,-898.53,0.00033296,30]
[327988553,1716754299352,-290.37618327,0.00033296,30]
[327988554,1716754299379,-898.53,0.00033296,30]
[327988555,1716754299406,-898.53,0.00033296,30]
[327988556,1716754299432,-898.53,0.00033296,30]
[327988557,1716754299458,-898.53,0.00033296,30]
[327988558,1716754299483,-500.0,0.00033296,30]
[327988559,1716754299515,-898.53,0.00033296,30]
[327988560,1716754299541,-898.53,0.00033296,30]
[327988561,1716754299567,-500.0,0.00033296,30]
[327988562,1716754299593,-500.0,0.00033296,30]
[327988563,1716754299618,-500.0,0.00033296,30]
[327988564,1716754299644,-898.53,0.00033296,30]
[327988565,1716754299671,-500.0,0.00033296,30]
[327988566,1716754299697,-500.0,0.00033296,30]
[327988567,1716754299723,-898.53,0.00033296,30]
[327988568,1716754299748,-500.0,0.00033296,30]
[327988569,1716754299773,-500.0,0.00033296,30]
[327988570,1716754299799,-898.53,0.00033296,30]
[327988571,1716754299823,-500.0,0.00033296,30]
[327988572,1716754299849,-500.0,0.00033296,30]
[327988573,1716754299875,-898.53,0.00033296,30]
[327988574,1716754299900,-500.0,0.00033296,30]
[327988575,1716754299928,-500.0,0.00033296,30]
[327988576,1716754299951,-500.0,0.00033296,30]
[327988577,1716754299976,-719.02,0.00033296,30]
[327988578,1716754300002,-898.53,0.00033296,30]
[327988579,1716754300030,-500.0,0.00033296,30]
[327988580,1716754300056,-500.0,0.00033296,30]
[327988581,1716754300082,-500.0,0.00033296,30]
[327988582,1716754300112,-719.02,0.00033296,30]
[327988583,1716754300140,-500.0,0.00033296,30]
[327988584,1716754300167,-500.0,0.00033296,30]
[327988585,1716754300193,-898.53,0.00033296,30]
[327988586,1716754300218,-500.0,0.00033296,30]
[327988587,1716754300312,-500.0,0.00033296,30]
[327988588,1716754300349,-500.0,0.00033296,30]
[327988589,1716754300374,-719.02,0.00033296,30]
[327988590,1716754300402,-898.53,0.00033296,30]
[327988591,1716754300428,-500.0,0.00033296,30]
[327988592,1716754300454,-509.6884286,0.00033296,30]
[327988593,1716754300481,-473.96978776,0.00033296,30]
[327988594,1716754300508,-898.53,0.00033296,30]
[327988595,1716754300534,-500.0,0.00033296,30]
[327988596,1716754300561,-719.02,0.00033296,30]
[327988597,1716754300587,-640.62,0.00033296,30]
[327988598,1716754300613,-898.53,0.00033296,30]
[327988599,1716754300640,-500.0,0.00033296,30]
[327988600,1716754300666,-719.02,0.00033296,30]
[327988601,1716754300692,-500.0,0.00033296,30]
[327988602,1716754300719,-898.56985628,0.00033296,30]
[327988603,1716754300745,-719.02,0.00033296,30]
[327988604,1716754300771,-640.62,0.00033296,30]
[327988605,1716754300796,-719.02,0.00033296,30]
[327988606,1716754300821,-640.62,0.00033296,30]
[327988607,1716754300846,-719.02,0.00033296,30]
[327988608,1716754300871,-500.0,0.00033296,30]
[327988609,1716754300898,-640.62,0.00033296,30]
[327988610,1716754300927,-719.02,0.00033296,30]
[327988611,1716754300952,-500.0,0.00033296,30]
[327988612,1716754300977,-640.62,0.00033296,30]
[327988613,1716754301002,-719.02,0.00033296,30]
[327988614,1716754301029,-500.0,0.00033296,30]
[327988615,1716754301055,-640.62,0.00033296,30]
[327988616,1716754301080,-500.0,0.00033296,30]
[327988617,1716754301105,-719.02,0.00033296,30]
[327988618,1716754301130,-640.62,0.00033296,30]
[327988619,1716754301155,-719.02,0.00033296,30]
[327988620,1716754301179,-500.0,0.00033296,30]
[327988621,1716754301204,-640.62,0.00033296,30]
[327988622,1716754301227,-500.0,0.00033296,30]
[327988623,1716754301251,-719.02,0.00033296,30]
[327988624,1716754301276,-640.62,0.00033296,30]
[327988625,1716754301301,-719.02,0.00033296,30]
[327988626,1716754301325,-640.62,0.00033296,30]
[327988627,1716754301349,-719.02,0.00033296,30]
[327988628,1716754301374,-640.62,0.00033296,30]
[327988629,1716754301400,-719.02,0.00033296,30]
[327988630,1716754301424,-640.62,0.00033296,30]
[327988631,1716754301448,-500.0,0.00033296,30]
[327988632,1716754301472,-510.92162943,0.00033296,30]
[327988633,1716754301497,-719.02,0.00033296,30]
[327988634,1716754301521,-640.62,0.00033296,30]
[327988635,1716754301546,-500.0,0.00033296,30]
[327988636,1716754301655,-719.02,0.00033296,30]
[327988637,1716754301680,-640.62,0.00033296,30]
[327988638,1716754301704,-500.0,0.00033296,30]
[327988639,1716754301730,-719.02,0.00033296,30]
[327988640,1716754301755,-500.0,0.00033296,30]
[327988641,1716754301780,-719.02,0.00033296,30]
[327988642,1716754301805,-640.62,0.00033296,30]
[327988643,1716754301830,-500.0,0.00033296,30]
[327988644,1716754301855,-640.62,0.00033296,30]
[327988645,1716754301879,-719.02,0.00033296,30]
[327988646,1716754301904,-640.62,0.00033296,30]
[327988647,1716754301929,-500.0,0.00033296,30]
[327988648,1716754301954,-719.02,0.00033296,30]
[327988649,1716754301980,-640.62,0.00033296,30]
[327988650,1716754302005,-500.0,0.00033296,30]
[327988651,1716754302034,-719.02,0.00033296,30]
[327988652,1716754302062,-640.62,0.00033296,30]
[327988653,1716754302094,-500.0,0.00033296,30]
[327988654,1716754302118,-719.24733622,0.00033296,30]
[327988655,1716754302144,-510.32982077,0.00033296,30]
[327988656,1716754302168,-640.62,0.00033296,30]
[327988657,1716754302192,-640.62,0.00033296,30]
[327988658,1716754302218,-640.62,0.00033296,30]
[327988659,1716754302245,-506.50462397,0.00033296,30]
[327988660,1716754302270,-640.62,0.00033296,30]
[327988661,1716754302297,-640.62,0.00033296,30]
[327988662,1716754302321,-500.0,0.00033296,30]
[327988663,1716754302347,-500.0,0.00033296,30]
[327988664,1716754302372,-515.48551234,0.00033296,30]
[327988665,1716754302395,-500.0,0.00033296,30]
[327988666,1716754302420,-500.0,0.00033296,30]
[327988667,1716754302447,-195.3335298,0.00033296,30]
[327988668,1716754302470,-500.0,0.00033296,30]
[327988669,1716754302494,-500.0,0.00033296,30]
[327988670,1716754302518,-500.0,0.00033296,30]
[327988671,1716754302542,-548.11167302,0.00033296,30]
[327988672,1716754302565,-619.65,0.00033296,30]
[327988673,1716754302589,-619.65,0.00033296,30]
[327988674,1716754302612,-619.65,0.00033296,30]
[327988675,1716754302636,-1033.58,0.00033296,30]
[327988676,1716754302660,-502.30891063,0.00033296,30]
[327988677,1716754302685,-263.71111562,0.00033296,30]
[327988678,1716754302710,-1033.58,0.00033296,30]
[327988679,1716754302733,-619.65,0.00033296,30]
[327988680,1716754302759,-1033.58,0.00033296,30]
[327988681,1716754302783,-619.65,0.00033296,30]
[327988682,1716754302884,-1033.58,0.00033296,30]
[327988683,1716754302911,-500.0,0.00033296,30]
[327988684,1716754302939,-619.65,0.00033296,30]
[327988685,1716754302963,-1033.58,0.00033296,30]
[327988686,1716754302987,-500.0,0.00033296,30]
[327988687,1716754303010,-619.65,0.00033296,30]
[327988688,1716754303039,-500.0,0.00033296,30]
[327988689,1716754303063,-619.65,0.00033296,30]
[327988690,1716754303087,-1033.58,0.00033296,30]
[327988691,1716754303114,-500.0,0.00033296,30]
[327988692,1716754303138,-619.65,0.00033296,30]
[327988693,1716754303162,-1033.58,0.00033296,30]
[327988694,1716754303973,-500.0,0.00033296,30]
[327988695,1716754304000,-619.65,0.00033296,30]
[327988696,1716754304028,-1033.58,0.00033296,30]
[327988697,1716754304053,-611.48,0.00033296,30]
[327988698,1716754304079,-500.0,0.00033296,30]
[327988699,1716754304106,-611.48,0.00033296,30]
[327988700,1716754304131,-1033.58,0.00033296,30]
[327988701,1716754304157,-500.0,0.00033296,30]
[327988702,1716754304596,-619.65,0.00033296,30]
[327988703,1716754304622,-611.48,0.00033296,30]
[327988704,1716754304646,-1033.58,0.00033296,30]
[327988705,1716754304671,-505.89203302,0.00033296,30]
[327988706,1716754304695,-500.0,0.00033296,30]
[327988707,1716754304722,-611.48,0.00033296,30]
[327988708,1716754304747,-1033.58,0.00033296,30]
[327988709,1716754304771,-611.48,0.00033296,30]
[327988710,1716754304796,-1033.58,0.00033296,30]
[327988711,1716754304821,-619.65,0.00033296,30]
[327988712,1716754304845,-611.48,0.00033296,30]
[327988713,1716754304869,-1033.58,0.00033296,30]
[327988714,1716754304895,-611.48,0.00033296,30]
[327988715,1716754304919,-1033.58,0.00033296,30]
[327988716,1716754304944,-611.48,0.00033296,30]
[327988717,1716754304968,-1033.58,0.00033296,30]
[327988718,1716754304993,-619.65,0.00033296,30]
[327988719,1716754305022,-611.48,0.00033296,30]
[327988720,1716754305048,-1033.58,0.00033296,30]
[327988721,1716754305074,-619.65,0.00033296,30]
[327988722,1716754305100,-1033.58,0.00033296,30]
[327988723,1716754305124,-611.48,0.00033296,30]
[327988724,1716754305149,-619.65,0.00033296,30]
[327988725,1716754305173,-611.48,0.00033296,30]
[327988726,1716754305200,-1033.58,0.00033296,30]
[327988727,1716754305297,-619.65,0.00033296,30]
[327988728,1716754305323,-611.48,0.00033296,30]
[327988729,1716754305350,-1033.58,0.00033296,30]
[327988730,1716754305374,-619.65,0.00033296,30]
[327988731,1716754305397,-500.0,0.00033296,30]
[327988732,1716754305421,-611.48,0.00033296,30]
[327988733,1716754305446,-1033.58,0.00033296,30]
[327988734,1716754305470,-500.0,0.00033296,30]
[327988735,1716754305494,-619.65,0.00033296,30]
[327988736,1716754305518,-611.48,0.00033296,30]
[327988737,1716754305542,-1033.58,0.00033296,30]
[327988738,1716754305566,-500.0,0.00033296,30]
[327988739,1716754305589,-619.65,0.00033296,30]
[327988740,1716754305613,-611.48,0.00033296,30]
[327988741,1716754305638,-1033.58,0.00033296,30]
[327988742,1716754305664,-500.0,0.00033296,30]
[327988743,1716754305688,-619.65,0.00033296,30]
[327988744,1716754305713,-611.48,0.00033296,30]
[327988745,1716754305738,-1033.58,0.00033296,30]
[327988746,1716754305763,-500.0,0.00033296,30]
[327988747,1716754305787,-619.65,0.00033296,30]
[327988748,1716754305812,-1033.59939782,0.00033296,30]
[327988749,1716754305853,-611.48,0.00033296,30]
[327988750,1716754305903,-500.0,0.00033296,30]
[327988751,1716754305950,-619.65,0.00033296,30]
[327988752,1716754305992,-500.0,0.00033296,30]
[327988753,1716754306036,-619.65,0.00033296,30]
[327988754,1716754306076,-611.48,0.00033296,30]
[327988755,1716754306114,-336.20871341,0.00033296,30]
[327988756,1716754306152,-619.85,0.00033296,30]
[327988757,1716754306188,-611.48,0.00033296,30]
[327988758,1716754306226,-611.48,0.00033296,30]
[327988759,1716754306264,-611.48,0.00033296,30]
[327988760,1716754306304,-611.48,0.00033296,30]
[327988761,1716754306344,-611.48,0.00033296,30]
[327988762,1716754306384,-611.63256296,0.00033296,30]
[327988763,1716754306426,-509.30376663,0.00033296,30]
[327988764,1716754306467,-599.67,0.00033296,30]
[327988765,1716754306507,-599.67,0.00033296,30]
[327988766,1716754306549,-599.67,0.00033296,30]
[327988767,1716754306589,-505.26771037,0.00033296,30]
[327988768,1716754306629,-599.67,0.00033296,30]
[327988769,1716754306669,-599.67,0.00033296,30]
[327988770,1716754306710,-599.67,0.00033296,30]
[327988771,1716754306858,-599.67,0.00033296,30]
[327988772,1716754306883,-599.67,0.00033296,30]
[327988773,1716754306909,-599.67,0.00033296,30]
[327988774,1716754306936,-599.67,0.00033296,30]
[327988775,1716754306962,-599.67,0.00033296,30]
[327988776,1716754306987,-599.67,0.00033296,30]
[327988777,1716754307014,-599.67,0.00033296,30]
[327988778,1716754307042,-599.67,0.00033296,30]
[327988779,1716754307067,-599.67,0.00033296,30]
[327988780,1716754307094,-500.0,0.00033296,30]
[327988781,1716754307120,-2414.67,0.00033296,30]
[327988782,1716754307146,-500.0,0.00033296,30]
[327988783,1716754307172,-599.67,0.00033296,30]
[327988784,1716754307197,-2414.67,0.00033296,30]
[327988785,1716754307223,-500.0,0.00033296,30]
[327988786,1716754307247,-2414.67,0.00033296,30]
[327988787,1716754307271,-599.67,0.00033296,30]
[327988788,1716754307296,-500.0,0.00033296,30]
[327988789,1716754307323,-599.67,0.00033296,30]
[327988790,1716754307348,-2414.67,0.00033296,30]
[327988791,1716754307372,-500.0,0.00033296,30]
[327988792,1716754307397,-2414.67,0.00033296,30]
[327988793,1716754307424,-599.67,0.00033296,30]
[327988794,1716754307450,-500.0,0.00033296,30]
[327988795,1716754307475,-2414.67,0.00033296,30]
[327988796,1716754307500,-599.67,0.00033296,30]
[327988797,1716754307525,-500.0,0.00033296,30]
[327988798,1716754307550,-2414.67,0.00033296,30]
[327988799,1716754307575,-599.67,0.00033296,30]
[327988800,1716754307601,-500.0,0.00033296,30]
[327988801,1716754307627,-2414.67,0.00033296,30]
[327988802,1716754307655,-599.67,0.00033296,30]
[327988803,1716754307683,-500.0,0.00033296,30]
[327988804,1716754307707,-2414.67,0.00033296,30]
[327988805,1716754307733,-599.67,0.00033296,30]
[327988806,1716754307759,-500.0,0.00033296,30]
[327988807,1716754307793,-500.0,0.00033296,30]
[327988808,1716754307820,-2414.67,0.00033296,30]
[327988809,1716754307846,-599.68378343,0.00033296,30]
[327988810,1716754307870,-500.0,0.00033296,30]
[327988811,1716754307899,-2414.67,0.00033296,30]
[327988812,1716754307925,-500.0,0.00033296,30]
[327988813,1716754307950,-500.0,0.00033296,30]
[327988814,1716754307974,-2414.67,0.00033296,30]
[327988815,1716754307998,-500.0,0.00033296,30]
[327988816,1716754308024,-500.0,0.00033296,30]
[327988817,1716754308049,-2414.67,0.00033296,30]
[327988818,1716754308075,-500.0,0.00033296,30]
[327988819,1716754308100,-500.0,0.00033296,30]
[327988820,1716754308124,-2414.67,0.00033296,30]
[327988821,1716754308149,-500.0,0.00033296,30]
[327988822,1716754308172,-2414.67,0.00033296,30]
[327988823,1716754308198,-500.0,0.00033296,30]
[327988824,1716754308223,-240.29910732,0.00033296,30]
[327988825,1716754308334,-2414.67,0.00033296,30]
[327988826,1716754308362,-500.0,0.00033296,30]
[327988827,1716754308392,-2414.67,0.00033296,30]
[327988828,1716754308417,-500.0,0.00033296,30]
[327988829,1716754308441,-2414.67,0.00033296,30]
[327988830,1716754308466,-500.0,0.00033296,30]
[327988831,1716754308492,-2414.67,0.00033296,30]
[327988832,1716754308516,-500.0,0.00033296,30]
[327988833,1716754308541,-2414.67,0.00033296,30]
[327988834,1716754308565,-500.0,0.00033296,30]
[327988835,1716754308589,-2414.67,0.00033296,30]
[327988836,1716754308615,-500.0,0.00033296,30]
[327988837,1716754308642,-2414.67,0.00033296,30]
[327988838,1716754308667,-500.0,0.00033296,30]
[327988839,1716754308692,-500.0,0.00033296,30]
[327988840,1716754308717,-193.72156446,0.00033296,30]
[327988842,1716754449974,514.21922606,9.999e-05,2]
[327988843,1716754473106,365.28202794,9.999e-05,2]
[327988844,1716754491104,365.09610686,9.999e-05,2]
[327988845,1716754781037,7494.0,0.00028,120]
[327988846,1716754896807,523.18795343,9.999e-05,2]
[327988847,1716755092704,155.0,9.999e-05,2]
[327988848,1716755110734,184.34324888,9.999e-05,2]
[327988849,1716755111820,-751.40681504,0.00032,120]
[327988850,1716755111848,-200.0,0.00032067,120]
[327988851,1716755111872,-150.5,0.00032846,35]
[327988852,1716755111896,-150.5,0.00032846,35]
[327988853,1716755111919,-150.5,0.00032846,35]
[327988854,1716755111941,-150.5,0.00032846,35]
[327988855,1716755111964,-206.76,0.00032846,35]
[327988856,1716755111987,-150.5,0.00032856,35]
[327988857,1716755112009,-150.5,0.00032856,35]
[327988858,1716755112032,-150.5,0.00032856,35]
[327988859,1716755112055,-150.5,0.00032856,35]
[327988860,1716755112078,-150.5,0.00032856,35]
[327988861,1716755112102,-150.5,0.00032866,35]
[327988862,1716755112124,-150.5,0.00032866,35]
[327988863,1716755112257,-150.5,0.00032866,35]
[327988864,1716755112283,-150.5,0.00032866,35]
[327988865,1716755112308,-150.5,0.00032866,35]
[327988866,1716755112333,-161.69,0.00032866,35]
[327988867,1716755112367,-500.0,0.00032897,30]
[327988868,1716755112389,-500.0,0.00032898,30]
[327988869,1716755112411,-500.0,0.00032898,30]
[327988870,1716755112435,-500.0,0.00032899,30]
[327988871,1716755112457,-500.0,0.00032899,30]
[327988872,1716755112480,-500.0,0.00032899,30]
[327988873,1716755112502,-500.0,0.00032899,30]
[327988874,1716755112525,-476.96992085,0.00032899,30]
[327988875,1716755112548,-320.0,0.0003297,35]
[327988876,1716755112570,-320.0,0.0003298,35]
[327988877,1716755112600,-320.0,0.0003299,35]
[327988878,1716755112623,-1000.0,0.00033,33]
[327988879,1716755112645,-230.19,0.00033,30]
[327988880,1716755112668,-51714.881748,0.00033,120]
[327988881,1716755112692,-24605.0,0.00033,30]
[327988882,1716755112717,-155.53,0.0003324,35]
[327988883,1716755112740,-150.5,0.0003324,35]
[327988884,1716755112763,-150.5,0.0003324,35]
[327988885,1716755112786,-320.0,0.0003324,35]
[327988886,1716755112808,-150.5,0.0003325,35]
[327988887,1716755112833,-150.5,0.0003325,35]
[327988888,1716755112857,-150.5,0.0003325,35]
[327988889,1716755112880,-150.5,0.0003325,35]
[327988890,1716755112903,-320.0,0.0003325,35]
[327988891,1716755112926,-197.25,0.0003325,35]
[327988892,1716755112950,-320.0,0.0003325,35]
[327988893,1716755112973,-150.5,0.0003326,35]
[327988894,1716755112996,-150.5,0.0003326,35]
[327988895,1716755113018,-150.5,0.0003326,35]
[327988896,1716755113053,-150.5,0.0003326,35]
[327988897,1716755113090,-320.0,0.0003326,35]
[327988898,1716755113127,-261.96,0.0003326,35]
[327988899,1716755113167,-150.5,0.0003326,35]
[327988900,1716755113203,-320.0,0.0003326,35]
[327988901,1716755113236,-200.0,0.00033261,120]
[327988902,1716755113274,-30000.0,0.000333,120]
[327988903,1716755113311,-5000.0,0.000333,30]
[327988904,1716755113340,-5000.0,0.000333,30]
[327988905,1716755113375,-2000.0,0.000333,30]
[327988906,1716755113408,-2000.0,0.000333,30]
[327988907,1716755114018,-4662.16,0.00033396,30]
[327988908,1716755114044,-10000.0,0.00033406,30]
[327988909,1716755114066,-10000.0,0.00033406,30]
[327988910,1716755114091,-10000.0,0.00033406,30]
[327988911,1716755114114,-3860.0,0.00033409,30]
[327988912,1716755114137,-2042.0,0.0003342,31]
[327988913,1716755114162,-10000.0,0.00033443,30]
[327988914,1716755114186,-10000.0,0.00033443,30]
[327988915,1716755114212,-200.0,0.00033564,120]
[327988916,1716755114235,-150.5,0.0003367,35]
[327988917,1716755114259,-150.5,0.0003368,35]
[327988918,1716755114285,-150.5,0.0003369,35]
[327988919,1716755114308,-23158.0,0.00033777,120]
[327988920,1716755114332,-200.0,0.00033788,120]
[327988921,1716755114359,-200.0,0.00033859,120]
[327988922,1716755114383,-1000.0,0.00034,120]
[327988923,1716755114407,-200.0,0.00034241,120]
[327988924,1716755114432,-1208.0,0.0003446,30]
[327988925,1716755114456,-200.0,0.00034876,120]
[327988926,1716755114480,-200.0,0.00034956,120]
[327988927,1716755114503,-323.47,0.00034957,35]
[327988928,1716755114525,-320.0,0.00034967,35]
[327988929,1716755114548,-208.22,0.00034967,35]
[327988930,1716755114572,-200.0,0.00034977,120]
[327988931,1716755114597,-737.66,0.00035,50]
[327988932,1716755114619,-376644.85151611,0.00035,30]
[327988941,1716755119446,-104600.45877279,0.00035,30]
[327988943,1716755119469,-6069.0,0.00035,30]
[327988944,1716755119628,-13076.0,0.00035,120]
[327988945,1716755119652,-218234.82799966,0.00035,30]
[327988946,1716755119677,-2762.29014111,0.00035,120]
[327988947,1716755119702,-20195.0,0.00035,30]
[327988948,1716755119726,-155.33005391,0.00035071,30]
[327988949,1716755119750,-534.93260165,0.00035616,30]
[327988950,1716755119774,-6250.0,0.00035616,120]
[327989082,1716755432610,-328.26786708,0.00015,2]
[327989083,1716755432622,-57.60578418,0.00015,2]
[327989084,1716755432632,-155.0,0.00015,2]
[327989085,1716755432641,-24880.0,0.0001739,2]
[327989086,1716755432650,-48222.71384,0.0001787,2]
[327989087,1716755432659,-154.53058877,0.00018118,2]
[327989088,1716755432669,-1328.189579,0.00018218,2]
[327989089,1716755432678,-6035.13994041,0.00018672,2]
[327989090,1716755432689,-2927.8189714,0.00018672,2]
[327989091,1716755432701,-37.04108819,0.00018672,2]
[327989092,1716755432710,-163.345509,0.00019178,2]
[327989093,1716755432720,-657.00464226,0.0001951,2]
[327989094,1716755432729,-171.33325076,0.000199,2]
[327989095,1716755432738,-2231.48861049,0.0002,6]
[327989096,1716755432748,-1143.89970046,0.00020903,2]
[327989097,1716755432757,-402.44,0.00020904,3]
[327989098,1716755432766,-166.666666,0.00021918,2]
[327989099,1716755432775,-166.666666,0.00022431,2]
[327989100,1716755432785,-151.0,0.00022608,3]
[327989101,1716755432794,-166.666666,0.00022944,2]
[327989102,1716755432803,-166.666666,0.00023456,2]
[327989103,1716755432812,-171.33325074,0.00023895,2]
[327989104,1716755432821,-166.666666,0.00023969,2]
[327989105,1716755432830,-712.5,0.00024384,2]
[327989106,1716755432839,-477.458082,0.00024384,2]
[327989107,1716755432849,-166.666666,0.00024482,2]
[327989108,1716755432858,-4087.62,0.0002499,3]
[327989109,1716755432868,-3406.35,0.0002499,3]
[327989110,1716755432877,-11664.44091965,0.00025,2]
[327989120,1716755438780,-1516.613679,0.00017219,2]
[327989121,1716755438791,-1711.29699614,0.00025,2]
[327989122,1716755438800,-401.16149513,0.00025,2]
[327989123,1716755438809,-174.77770949,0.00025203,2]
[327989124,1716755438819,-503.47593598,0.00025495,2]
[327989125,1716755438829,-500.0,0.00025495,2]
[327989126,1716755438839,-513.54074431,0.00025496,2]
[327989128,1716755438849,-181.11191058,0.00026712,2]
[327989130,1716755438859,-1328.189579,0.00027327,2]
[327989132,1716755438868,-171.33325074,0.0002789,2]
[327989134,1716755438878,-1095.77707489,0.0002798,3]
[327989138,1716755443726,-1742.84292511,0.0002798,3]
[327989139,1716755443736,-2635.3980835,0.00027987,7]
[327989141,1716755446728,-500.49382646,0.00027987,7]
[327989178,1716756113981,1406.03032436,9.999e-05,2]
[327989185,1716756407173,16158.38286533,9.999e-05,2]
[327989186,1716756424968,5416.5775359,9.999e-05,2]
[327989286,1716756638070,-2028.01811183,0.00012499,2]
[327989338,1716756646048,-3009.23979464,0.00012499,2]
[327989339,1716756646058,-952.05990751,0.00012499,2]
[327989351,1716756795414,1044.31672066,9.999e-05,2]
[327989353,1716757316082,156.6263305,9.999e-05,2]
[327989354,1716757353897,285.35051707,9.999e-05,2]
[327989355,1716757357029,291.99610679,9.999e-05,2]
[327989426,1716757832205,-1044.31672066,0.00012498,2]
[327989427,1716757832215,-1145.55635635,0.00012499,2]
[327989453,1716757838556,-993.16800188,0.00012499,2]
[327989455,1716757838569,-42334.25717452,0.00012499,2]
[327989457,1716757838579,-223.07296701,0.00012499,2]
[327989459,1716757838589,-156.6748638,0.00012499,2]
[327989461,1716757838599,-483.41447272,0.00012499,2]
[327989463,1716757838609,-672.11614523,0.00012499,2]
[327989465,1716757838618,-3050.84003274,0.000125,2]
[327989467,1716757838628,-288.2118729,0.000136,2]
[327989469,1716757838638,-156.6263305,0.00017136,2]
[327989471,1716757838648,-202.176255,0.00017137,2]
[327989473,1716757838658,-330.86562202,0.000189,2]
[327989475,1716757838668,-163.345509,0.00019178,2]
[327989477,1716757838678,-164.945318,0.00019178,2]
[327989479,1716757838688,-5481.10656327,0.0002,2]
[327989503,1716757842722,-2984.65669201,0.0002,2]
[327989506,1716757842817,-302.8671087,0.0002,2]
[327989508,1716757843621,-253.86351509,0.0002,2]
[327989528,1716757846257,-1098.90829827,0.0002,2]